bitfinex-derivatives/quotes_SOLF0:USTF0_20241025
["timestamp","ask_amount","ask_price","bid_price","bid_amount"]
[1729846732955,10.54245601,172.35,172.32,2.9031]
[1729846734445,4.64,172.36,172.34,2.9027]
[1729846734847,4.64,172.36,172.32,8.01905601]
[1729846735357,4.64,172.36,172.35,2.9026]
[1729846741257,2.6779,172.36,172.35,10.92165601]
[1729846741456,8.01905601,172.42,172.35,8.01905601]
[1729846741761,8.01905601,172.42,172.37,2.9022]
[1729846741962,8.01905601,172.42,172.35,8.01905601]
[1729846742157,8.01905601,172.42,172.38,2.9021]
[1729846749572,8.01905601,172.42,172.36,8.01905601]
[1729846749764,8.01905601,172.42,172.39,2.9019]
[1729846755373,8.01905601,172.42,172.4,2.9017]
[1729846757886,8.01905601,172.42,172.37,4.52]
[1729846758386,8.01905601,172.4,172.37,4.52]
[1729846758679,8.01905601,172.4,172.38,2.902]
[1729846760478,2.4321,172.41,172.38,2.902]
[1729846761881,10.45115601,172.41,172.38,2.902]
[1729846762578,10.45115601,172.41,172.36,7.4223]
[1729846762778,8.01905601,172.39,172.36,4.52]
[1729846763370,10.92105601,172.39,172.36,7.4224]
[1729846763885,8.01905601,172.39,172.36,7.4224]
[1729846764184,8.01905601,172.39,172.36,2.9024]
[1729846765472,10.92115601,172.38,172.33,8.01905601]
[1729846765681,10.92115601,172.38,172.35,2.9026]
[1729846765879,8.01905601,172.36,172.3,8.01905601]
[1729846766085,8.01905601,172.36,172.31,5.97182725]
[1729846766287,8.01905601,172.36,172.32,1.45182725]
[1729846766479,8.01905601,172.36,172.33,1.45182725]
[1729846766787,8.01905601,172.36,172.33,2.9028]
[1729846770787,8.01905601,172.34,172.33,2.9028]
[1729846770991,8.01905601,172.34,172.33,4.35466108]
[1729846771384,8.01905601,172.34,172.33,1.45186108]
[1729846771587,8.01905601,172.34,172.31,2.9032]
[1729846771783,8.01905601,172.34,172.32,1.45193414]
[1729846771985,8.01905601,172.34,172.31,2.9032]
[1729846772695,8.01905601,172.34,172.32,2.9031]
[1729846773487,8.01905601,172.34,172.31,2.9032]
[1729846776896,8.01905601,172.34,172.32,2.9031]
[1729846778789,2.9021,172.38,172.33,2.9028]
[1729846779095,14.79905601,172.37,172.31,8.01905601]
[1729846779293,14.79905601,172.37,172.36,2.9025]
[1729846779294,6.78,172.37,172.36,2.9025]
[1729846780394,6.78,172.37,172.34,4.52]
[1729846780595,8.01905601,172.36,172.34,7.4227]
[1729846783397,8.01905601,172.36,172.34,2.9027]
[1729846783795,8.01905601,172.36,172.35,1.45177547]
[1729846784405,8.01905601,172.36,172.34,2.9027]
[1729846785195,8.01905601,172.36,172.35,1.45178856]
[1729846785391,6.78,172.37,172.36,2.9025]
[1729846785598,6.78,172.37,172.36,4.35428856]
[1729846787296,6.78,172.37,172.36,2.9025]
[1729846787495,6.78,172.37,172.36,4.35420851]
[1729846788420,6.78,172.37,172.36,2.9025]
[1729846789901,6.78,172.37,172.36,4.35420747]
[1729846792202,6.78,172.37,172.36,2.9025]
[1729846792508,6.78,172.37,172.36,4.35412206]
[1729846801915,6.78,172.37,172.36,8.87412206]
[1729846802854,6.78,172.37,172.36,7.4225]
[1729846803114,6.78,172.37,172.36,8.87408448]
[1729846805627,6.78,172.37,172.36,16.89314049]
[1729846807327,10.91985601,172.46,172.42,2.9014]
[1729846807525,10.91985601,172.46,172.43,1.45158448]
[1729846807826,10.91985601,172.46,172.42,2.9014]
[1729846808121,10.91985601,172.46,172.43,1.45121172]
[1729846808327,8.01905601,172.44,172.42,2.9014]
[1729846808529,8.01905601,172.44,172.41,7.4016]
[1729846808729,8.01905601,172.44,172.42,1.45122541]
[1729846809024,8.01905601,172.44,172.41,7.4016]
[1729846810419,8.01905601,172.44,172.41,4.5]
[1729846810723,8.01905601,172.42,172.38,4.5]
[1729846810927,8.01905601,172.42,172.39,1.45137977]
[1729846811123,8.01905601,172.42,172.4,1.45137977]
[1729846811424,8.01905601,172.4,172.36,4.5]
[1729846811625,8.01905601,172.4,172.37,1.45150433]
[1729846811822,8.01905601,172.4,172.38,1.45150433]
[1729846812019,8.01905601,172.4,172.39,1.45150433]
[1729846812218,8.01905601,172.4,172.37,2.9022]
[1729846812422,8.01905601,172.4,172.35,4.5]
[1729846812423,8.01905601,172.4,172.38,1.45153497]
[1729846812623,8.01905601,172.4,172.35,4.5]
[1729846812816,8.01905601,172.4,172.36,1.45153557]
[1729846813015,8.01905601,172.4,172.37,4.35373557]
[1729846813220,8.01905601,172.4,172.38,1.45153557]
[1729846813529,10.92095601,172.4,172.36,2.9024]
[1729846813733,10.92095601,172.4,172.35,4.5]
[1729846813734,8.01905601,172.38,172.35,4.5]
[1729846814021,8.01905601,172.38,172.36,1.45161499]
[1729846814229,10.92115601,172.38,172.37,1.45161499]
[1729846814427,8.01905601,172.38,172.37,1.45161499]
[1729846814930,2.3763,172.42,172.37,1.45161499]
[1729846815132,8.01905601,172.4,172.36,2.9024]
[1729846815427,10.92095601,172.4,172.37,1.45166027]
[1729846815626,10.92095601,172.4,172.36,2.9024]
[1729846815828,8.01905601,172.38,172.37,1.45166229]
[1729846817333,2.9019,172.4,172.37,1.45166229]
[1729846817521,8.01905601,172.39,172.36,2.9024]
[1729846817730,2.3763,172.42,172.37,1.45166759]
[1729846817930,2.3763,172.42,172.37,2.9021]
[1729846817931,8.01905601,172.4,172.37,2.9021]
[1729846818532,10.92095601,172.4,172.36,2.9024]
[1729846818736,10.92095601,172.4,172.37,1.45166793]
[1729846818934,10.92095601,172.4,172.36,2.9024]
[1729846819131,2.9016,172.41,172.37,4.35386793]
[1729846819437,8.01905601,172.4,172.37,2.9022]
[1729846819830,1.1929,172.42,172.37,8.01905601]
[1729846820030,9.23865601,172.43,172.38,1.45157453]
[1729846820232,1.2196,172.43,172.39,1.45157453]
[1729846820435,9.23865601,172.43,172.41,2.9015]
[1729846820841,8.01905601,172.42,172.35,4.5]
[1729846821136,8.01905601,172.39,172.36,1.45153259]
[1729846821330,8.01905601,172.39,172.37,1.45153259]
[1729846821530,8.01905601,172.39,172.38,1.45153259]
[1729846822331,8.01905601,172.4,172.38,1.45153259]
[1729846822540,8.01905601,172.4,172.37,2.9021]
[1729846822738,8.01905601,172.4,172.38,1.45153541]
[1729846822938,8.01905601,172.4,172.35,12.51905601]
[1729846823133,8.01905601,172.4,172.36,1.45153628]
[1729846823327,8.01905601,172.4,172.37,1.45153628]
[1729846823527,8.01905601,172.4,172.38,1.45153628]
[1729846823829,8.01905601,172.39,172.37,2.9021]
[1729846824237,8.01905601,172.39,172.35,4.5]
[1729846824428,8.01905601,172.39,172.35,7.4025]
[1729846824627,8.01905601,172.39,172.36,1.45167967]
[1729846824832,8.01905601,172.39,172.35,7.4025]
[1729846825038,8.01905601,172.39,172.36,1.45167939]
[1729846825236,10.92105601,172.39,172.35,2.9025]
[1729846825438,8.01905601,172.38,172.36,1.45168766]
[1729846825633,8.01905601,172.38,172.34,4.5]
[1729846825840,8.01905601,172.36,172.35,1.45175198]
[1729846826036,8.01905601,172.36,172.32,2.903]
[1729846826233,8.01905601,172.36,172.33,1.45185558]
[1729846826439,8.01905601,172.36,172.34,1.45185558]
[1729846826640,8.01905601,172.36,172.32,2.903]
[1729846826842,8.01905601,172.36,172.33,1.45188454]
[1729846827033,8.01905601,172.36,172.34,1.45188454]
[1729846827238,10.92155601,172.36,172.32,2.903]
[1729846827543,10.92155601,172.36,172.33,1.45189134]
[1729846827764,10.92155601,172.36,172.32,2.903]
[1729846827932,10.92155601,172.36,172.33,1.45189134]
[1729846828135,10.92155601,172.36,172.34,1.45189134]
[1729846828332,10.92155601,172.36,172.32,2.903]
[1729846828646,10.92155601,172.36,172.33,1.45188427]
[1729846828843,10.92155601,172.36,172.34,1.45188427]
[1729846829145,10.92155601,172.36,172.32,2.903]
[1729846829344,10.92155601,172.36,172.33,1.45187355]
[1729846829542,10.92155601,172.36,172.34,1.45187355]
[1729846829848,8.01905601,172.36,172.35,1.45178583]
[1729846830146,8.01905601,172.36,172.33,2.9029]
[1729846830347,8.01905601,172.36,172.34,1.45187185]
[1729846830545,10.92155601,172.36,172.33,2.9029]
[1729846830740,10.92155601,172.36,172.34,1.4518715]
[1729846830944,10.92155601,172.36,172.33,2.9029]
[1729846831147,10.92155601,172.36,172.34,1.45187857]
[1729846831367,10.92155601,172.36,172.33,2.9029]
[1729846831647,10.92155601,172.36,172.34,1.45187783]
[1729846831839,10.92155601,172.36,172.33,2.9029]
[1729846832042,10.92155601,172.36,172.34,1.45187076]
[1729846832348,10.92155601,172.36,172.33,2.9029]
[1729846832654,10.92155601,172.36,172.34,1.4518693]
[1729846832850,10.92155601,172.36,172.33,2.9029]
[1729846833046,10.92155601,172.36,172.34,1.4518693]
[1729846833245,10.92155601,172.36,172.33,2.9029]
[1729846833448,10.92155601,172.36,172.34,1.45187023]
[1729846833755,10.92155601,172.36,172.33,2.9029]
[1729846833943,10.92155601,172.36,172.34,1.45187851]
[1729846834146,10.92155601,172.36,172.33,2.9029]
[1729846834357,10.92155601,172.36,172.34,1.45187885]
[1729846834653,4.5,172.4,172.31,28.0]
[1729846834654,8.01905601,172.35,172.31,28.0]
[1729846834953,10.92175601,172.35,172.32,1.4519108]
[1729846835148,10.92175601,172.35,172.31,30.9033]
[1729846835343,8.01905601,172.35,172.32,1.4518896]
[1729846835547,8.01905601,172.35,172.33,1.4518896]
[1729846835747,8.01905601,172.35,172.31,28.0]
[1729846835951,8.01905601,172.33,172.32,1.45195351]
[1729846837150,2.9025,172.36,172.32,4.35505351]
[1729846837355,8.01905601,172.35,172.32,2.9031]
[1729846838798,10.92215601,172.33,172.31,28.0]
[1729846839055,8.01905601,172.32,172.25,8.01905601]
[1729846839353,2.4869,172.34,172.26,1.45217247]
[1729846839354,8.01905601,172.3,172.26,1.45217247]
[1729846839553,8.01905601,172.3,172.27,1.45217247]
[1729846839755,2.4869,172.34,172.28,1.45217247]
[1729846839756,4.5,172.32,172.28,1.45217247]
[1729846840059,2.9039,172.28,172.21,4.5]
[1729846840253,8.01905601,172.26,172.21,4.5]
[1729846840556,1.2402,172.29,172.2,8.01905601]
[1729846840557,8.01905601,172.25,172.23,2.9045]
[1729846842453,8.01905601,172.25,172.2,4.5]
[1729846842662,8.01905601,172.25,172.22,2.9048]
[1729846843454,1.2665,172.28,172.19,28.0]
[1729846843455,8.01905601,172.23,172.19,28.0]
[1729846843661,8.01905601,172.22,172.19,28.0]
[1729846844247,8.01905601,172.22,172.19,30.9053]
[1729846845555,8.01905601,172.2,172.19,28.0]
[1729846845963,8.01905601,172.2,172.15,4.5]
[1729846846255,4.5,172.24,172.16,2.9057]
[1729846846256,8.01905601,172.19,172.16,2.9057]
[1729846846460,8.01905601,172.21,172.15,8.01905601]
[1729846847361,8.01905601,172.16,172.08,90.7]
[1729846847554,8.01905601,172.16,172.1,12.51905601]
[1729846847955,8.01905601,172.16,172.1,4.5]
[1729846848258,8.01905601,172.16,172.11,8.01905601]
[1729846848562,8.01905601,172.16,172.13,2.9062]
[1729846849150,8.01905601,172.16,172.11,4.5]
[1729846849352,8.01905601,172.16,172.11,12.51905601]
[1729846849663,2.381,172.2,172.11,4.5]
[1729846849956,8.01905601,172.16,172.11,4.5]
[1729846850154,8.01905601,172.16,172.12,8.01905601]
[1729846850352,1.1869,172.2,172.12,12.51905601]
[1729846850560,8.01905601,172.19,172.14,8.01905601]
[1729846850955,8.01905601,172.19,172.17,2.9055]
[1729846851960,1.1869,172.2,172.15,8.01905601]
[1729846852148,8.01905601,172.21,172.17,8.01905601]
[1729846852351,6.41,172.19,172.17,8.01905601]
[1729846852549,6.41,172.19,172.17,12.51905601]
[1729846852746,6.41,172.19,172.18,2.9055]
[1729846863367,6.41,172.19,172.17,2.9055]
[1729846865374,6.41,172.19,172.18,2.9055]
[1729846869474,14.42905601,172.19,172.16,2.9058]
[1729846869669,8.01905601,172.19,172.16,2.9058]
[1729846870759,8.01905601,172.17,172.16,2.9058]
[1729846870959,2.446,172.25,172.11,8.01905601]
[1729846871169,2.446,172.25,172.19,2.9052]
[1729846871170,8.01905601,172.2,172.19,2.9052]
[1729846871473,8.01905601,172.2,172.12,4.5]
[1729846871474,8.01905601,172.22,172.16,8.01905601]
[1729846871676,399.7,172.4,172.18,8.01905601]
[1729846871877,8.01905601,172.25,172.19,8.01905601]
[1729846872171,2.4124,172.33,172.22,8.01905601]
[1729846872366,7.4031,172.32,172.22,8.01905601]
[1729846872564,8.01905601,172.29,172.24,8.01905601]
[1729846872777,8.01905601,172.29,172.27,2.9039]
[1729846873077,8.01905601,172.28,172.27,2.9039]
[1729846875173,8.01905601,172.28,172.26,2.9041]
[1729846875475,8.01905601,172.26,172.21,8.01905601]
[1729846875672,4.5,172.32,172.2,4.5]
[1729846875673,8.01905601,172.25,172.2,4.5]
[1729846875978,8.01905601,172.25,172.23,2.9046]
[1729846876678,8.01905601,172.25,172.2,4.5]
[1729846876976,8.01905601,172.25,172.21,2.9048]
[1729846877569,1.2871,172.26,172.21,2.9048]
[1729846877765,1.2871,172.26,172.2,12.51905601]
[1729846877969,9.30615601,172.26,172.25,2.9043]
[1729846879675,9.30615601,172.26,172.2,12.51905601]
[1729846879865,9.30615601,172.26,172.24,2.9044]
[1729846880166,4.5,172.29,172.22,8.01905601]
[1729846880377,4.5,172.29,172.26,2.9041]
[1729846880378,8.01905601,172.28,172.26,2.9041]
[1729846880568,8.01905601,172.27,172.2,4.5]
[1729846880770,8.01905601,172.27,172.2,12.51905601]
[1729846881470,8.01905601,172.26,172.2,12.51905601]
[1729846881775,8.01905601,172.28,172.22,8.01905601]
[1729846883269,8.01905601,172.28,172.24,2.9043]
[1729846883471,2.9036,172.29,172.24,2.9043]
[1729846883472,8.01905601,172.26,172.24,2.9043]
[1729846883881,8.01905601,172.26,172.23,2.9046]
[1729846885984,9.29625601,172.26,172.23,2.9046]
[1729846886973,8.01905601,172.25,172.22,2.9048]
[1729846887573,10.92345601,172.25,172.21,2.9049]
[1729846887982,8.01905601,172.23,172.21,2.9049]
[1729846888689,8.01905601,172.22,172.2,2.9051]
[1729846888987,2.9047,172.23,172.18,28.0]
[1729846888988,8.01905601,172.21,172.18,28.0]
[1729846890192,8.01905601,172.19,172.18,28.0]
[1729846890989,8.01905601,172.19,172.18,16.16]
[1729846890990,10.92435601,172.19,172.18,16.16]
[1729846891187,16.92435601,172.19,172.18,16.16]
[1729846892978,16.92435601,172.19,172.18,14.197]
[1729846893988,14.01905601,172.19,172.13,2.9063]
[1729846894193,8.01905601,172.15,172.13,2.9063]
[1729846896590,8.01905601,172.15,172.12,2.9064]
[1729846898693,2.9059,172.16,172.12,2.9064]
[1729846899000,8.01905601,172.14,172.12,2.9064]
[1729846899888,8.01905601,172.14,172.11,2.9065]
[1729846901195,8.01905601,172.13,172.1,2.9068]
[1729846903788,5.7795,172.18,172.13,2.9063]
[1729846903990,8.01905601,172.15,172.13,2.9063]
[1729846904685,8.01905601,172.15,172.1,8.01905601]
[1729846904888,8.01905601,172.15,172.14,2.9062]
[1729846905482,8.01905601,172.16,172.11,8.01905601]
[1729846905688,8.01905601,172.16,172.11,12.51905601]
[1729846905888,8.01905601,172.16,172.12,2.9064]
[1729846906190,8.01905601,172.16,172.11,12.51905601]
[1729846906390,6.0,172.19,172.15,2.9058]
[1729846906587,8.01905601,172.17,172.15,2.9058]
[1729846908196,8.01905601,172.16,172.15,2.9058]
[1729846908422,2.9055,172.18,172.15,2.9058]
[1729846908589,8.01905601,172.16,172.15,2.9058]
[1729846912104,2.9062,172.14,172.1,2.9067]
[1729846912296,8.01905601,172.13,172.1,2.9067]
[1729846912500,8.01905601,172.13,172.07,8.01905601]
[1729846912703,4.5,172.16,172.11,2.9065]
[1729846912704,8.01905601,172.14,172.11,2.9065]
[1729846914197,8.01905601,172.15,172.11,2.9066]
[1729846914397,8.01905601,172.15,172.1,1.45364089]
[1729846914599,8.01905601,172.15,172.09,6.9646]
[1729846914798,8.01905601,172.15,172.12,2.9064]
[1729846916606,8.01905601,172.14,172.11,2.9067]
[1729846920706,8.01905601,172.12,172.09,8.619]
[1729846921306,4.88,172.11,172.09,8.619]
[1729846921509,4.88,172.11,172.09,4.119]
[1729846921712,4.88,172.11,172.1,2.9068]
[1729846928220,8.01905601,172.13,172.1,2.9068]
[1729846928221,2.4431,172.23,172.16,2.9057]
[1729846928420,2.4431,172.23,172.1,12.51905601]
[1729846928421,4.5,172.22,172.1,12.51905601]
[1729846928624,8.01905601,172.17,172.1,12.51905601]
[1729846928920,2.4431,172.23,172.13,8.01905601]
[1729846929116,2.4431,172.23,172.14,4.5]
[1729846929117,6.9431,172.23,172.14,4.5]
[1729846929426,8.01905601,172.2,172.14,4.5]
[1729846929725,2.4431,172.23,172.14,4.5]
[1729846930023,8.01905601,172.19,172.14,4.5]
[1729846930512,2.4431,172.23,172.15,8.01905601]
[1729846930715,8.01905601,172.2,172.15,8.01905601]
[1729846932024,8.01905601,172.2,172.18,2.9055]
[1729846932214,8.01905601,172.2,172.15,8.01905601]
[1729846932215,1.2112,172.32,172.16,8.01905601]
[1729846932415,8.01905601,172.23,172.2,2.905]
[1729846932619,8.01905601,172.22,172.16,8.01905601]
[1729846933328,8.01905601,172.22,172.14,4.5]
[1729846933527,8.01905601,172.22,172.16,8.01905601]
[1729846934221,8.01905601,172.22,172.19,2.9053]
[1729846936022,8.01905601,172.23,172.18,8.01905601]
[1729846936218,8.01905601,172.25,172.22,2.9048]
[1729846936429,8.01905601,172.25,172.18,12.51905601]
[1729846936430,8.01905601,172.23,172.18,12.51905601]
[1729846936633,8.01905601,172.23,172.21,2.9049]
[1729846936930,8.01905601,172.23,172.18,12.51905601]
[1729846938327,8.01905601,172.23,172.2,2.905]
[1729846940237,8.01905601,172.23,172.21,2.905]
[1729846942436,8.01905601,172.23,172.18,4.5]
[1729846943740,8.01905601,172.23,172.2,2.905]
[1729846945042,8.01905601,172.23,172.18,4.5]
[1729846945242,8.01905601,172.23,172.21,2.9049]
[1729846945741,10.92345601,172.25,172.21,2.9049]
[1729846945943,8.01905601,172.25,172.21,2.9049]
[1729846946142,2.9045,172.24,172.21,2.9049]
[1729846948738,8.01905601,172.23,172.21,2.9049]
[1729846949138,8.01905601,172.23,172.18,4.5]
[1729846949335,8.01905601,172.23,172.2,2.9051]
[1729846949738,8.01905601,172.23,172.18,4.5]
[1729846949739,8.01905601,172.21,172.18,2.9054]
[1729846949941,8.01905601,172.21,172.14,8.01905601]
[1729846950437,8.01905601,172.16,172.08,4.5]
[1729846950638,8.01905601,172.18,172.12,8.01905601]
[1729846951043,8.01905601,172.18,172.15,2.9058]
[1729846951544,8.01905601,172.16,172.06,8.01905601]
[1729846951746,8.01905601,172.13,172.06,8.01905601]
[1729846952042,12.51905601,172.14,172.1,2.9068]
[1729846952340,8.01905601,172.14,172.07,8.01905601]
[1729846952547,8.01905601,172.14,172.1,2.9067]
[1729846955547,10.92535601,172.14,172.09,2.907]
[1729846957443,2.9064,172.13,172.09,2.907]
[1729846958739,2.9072,172.08,172.03,2.9079]
[1729846958952,8.01905601,172.06,172.03,2.9079]
[1729846959143,8.01905601,172.06,172.04,1.4541141]
[1729846959347,8.01905601,172.06,172.01,2.9082]
[1729846959348,10.92675601,172.06,172.01,2.9082]
[1729846959544,8.01905601,172.08,172.02,9.47330825]
[1729846959746,8.01905601,172.08,172.03,1.45425224]
[1729846959947,10.92635601,172.08,172.03,2.908]
[1729846960155,2.9073,172.08,172.02,8.01905601]
[1729846960344,8.01905601,172.07,172.03,1.45425426]
[1729846960546,10.92645601,172.07,172.04,1.45425426]
[1729846960751,8.01905601,172.06,172.02,2.908]
[1729846960943,8.01905601,172.06,172.03,1.45428296]
[1729846961248,4.5,172.1,172.02,2.908]
[1729846961443,8.01905601,172.06,172.03,1.45432473]
[1729846961649,8.01905601,172.06,172.02,2.908]
[1729846961951,8.01905601,172.06,171.99,4.5]
[1729846961952,8.01905601,172.06,172.03,1.45432576]
[1729846962148,8.01905601,172.04,171.99,4.5]
[1729846962388,10.92695601,172.04,172.0,1.45432589]
[1729846962543,10.92695601,172.04,171.99,12.51905601]
[1729846962854,10.92695601,172.04,172.0,1.45438419]
[1729846963055,10.92695601,172.04,172.01,1.45438419]
[1729846963246,10.92695601,172.04,172.0,2.9084]
[1729846963446,10.92695601,172.04,172.01,1.45444226]
[1729846963647,10.92695601,172.04,172.0,2.9084]
[1729846963847,10.92695601,172.04,172.01,1.45444226]
[1729846964151,10.92695601,172.04,172.0,2.9084]
[1729846964152,8.01905601,172.04,172.0,2.9084]
[1729846965652,2.9077,172.05,172.0,2.9084]
[1729846965956,8.01905601,172.03,172.0,2.9084]
[1729846966253,8.01905601,172.03,172.01,2.9083]
[1729846966751,2.9077,172.05,171.99,12.51905601]
[1729846966752,8.01905601,172.05,171.99,12.51905601]
[1729846966954,8.01905601,172.05,172.02,2.9082]
[1729846967863,8.01905601,172.05,172.03,2.908]
[1729846969851,8.01905601,172.05,172.03,2.9079]
[1729846975161,8.01905601,172.05,172.0,1.3074]
[1729846975162,4.5,172.1,172.0,9.32645601]
[1729846975464,4.5,172.1,172.0,2.76175382]
[1729846975655,8.01905601,172.04,172.0,2.76175382]
[1729846976361,8.01905601,172.04,172.03,2.908]
[1729846977048,2.9061,172.15,172.1,2.9068]
[1729846977250,2.9061,172.15,172.0,2.76175382]
[1729846977251,8.01905601,172.11,172.07,4.5]
[1729846977456,8.01905601,172.11,172.04,4.03155382]
[1729846977457,8.01905601,172.11,172.05,12.51905601]
[1729846977755,8.01905601,172.11,172.07,2.9072]
[1729846978858,8.01905601,172.11,172.05,13.97340983]
[1729846979054,2.89667353,172.24,172.09,8.01905601]
[1729846979269,2.83740358,172.38,172.13,8.01905601]
[1729846979270,8.01905601,172.2,172.13,8.01905601]
[1729846979459,5.7496,172.27,172.14,4.5]
[1729846979655,8.01905601,172.2,172.17,2.9057]
[1729846980057,8.01905601,172.18,172.14,2.9061]
[1729846980360,1.2544,172.22,172.14,12.51905601]
[1729846980560,5.7496,172.27,172.17,2.9055]
[1729846980561,8.01905601,172.21,172.17,2.9055]
[1729846980760,8.01905601,172.21,172.14,12.51905601]
[1729846981068,8.01905601,172.21,172.15,8.01905601]
[1729846981452,2.9044,172.25,172.15,8.01905601]
[1729846981656,8.01905601,172.21,172.16,2.9057]
[1729846981862,8.01905601,172.21,172.15,8.01905601]
[1729846982566,8.01905601,172.21,172.19,2.9053]
[1729846983057,8.01905601,172.21,172.15,8.01905601]
[1729846983258,8.01905601,172.21,172.14,4.5]
[1729846983259,8.01905601,172.2,172.14,4.5]
[1729846983459,8.01905601,172.2,172.14,12.51905601]
[1729846983965,8.01905601,172.2,172.17,2.9056]
[1729846984469,8.01905601,172.2,172.15,8.01905601]
[1729846984667,8.01905601,172.2,172.18,2.9055]
[1729846984867,5.7496,172.27,172.17,8.01905601]
[1729846985067,8.01905601,172.23,172.17,8.01905601]
[1729846986570,8.01905601,172.21,172.15,8.01905601]
[1729846987069,2.9043,172.25,172.17,8.01905601]
[1729846987070,5.66,172.2,172.17,8.01905601]
[1729846987263,5.66,172.2,171.98,2.65708827]
[1729846987468,5.66,172.2,171.9,4.35498722]
[1729846987469,285.54682521,172.09,172.08,2.9072]
[1729846987771,8.01905601,172.11,172.04,8.01905601]
[1729846988066,8.01905601,172.11,172.05,8.01905601]
[1729846988656,8.01905601,172.11,172.05,10.92665601]
[1729846989261,8.01905601,172.12,172.06,16.26655601]
[1729846989457,5.34,172.17,172.08,8.01905601]
[1729846989670,8.01905601,172.15,172.08,8.01905601]
[1729846989873,8.01905601,172.15,172.08,10.92605601]
[1729846990260,2.9058,172.16,172.08,2.907]
[1729846990465,2.906,172.15,172.08,2.907]
[1729846991972,15.47422517,172.15,172.07,2.4935]
[1729846993179,15.47422517,172.15,172.07,5.4008]
[1729846995177,15.47422517,172.15,172.08,2.9072]
[1729846995676,2.9062,172.14,172.07,5.4008]
[1729846996173,12.56822517,172.15,172.07,2.4935]
[1729846998304,2.9066,172.12,172.07,2.4935]
[1729846999279,12.56822517,172.15,172.07,2.4935]
[1729846999475,12.56822517,172.16,172.07,2.4935]
[1729846999872,2.9062,172.14,172.08,2.9072]
[1729847001678,2.906,172.16,172.1,2.9068]
[1729847002681,2.9057,172.17,172.07,16.31472517]
[1729847002874,5.66,172.2,172.11,18.22822517]
[1729847003274,5.66,172.2,172.15,2.9059]
[1729847003577,12.56822517,172.17,172.02,5.66]
[1729847003783,12.56822517,172.17,172.05,12.56822517]
[1729847003971,2.9062,172.14,172.06,1.45386514]
[1729847004175,2.9062,172.14,172.05,12.56822517]
[1729847004176,2.9062,172.14,172.07,7.453839]
[1729847004477,2.9062,172.14,172.07,6.0]
[1729847005078,2.9062,172.14,172.07,7.45385755]
[1729847005277,12.56822517,172.17,172.07,6.0]
[1729847005478,2.906,172.15,172.08,1.45385755]
[1729847005783,2.906,172.15,172.07,6.0]
[1729847006282,2.906,172.15,172.09,2.9068]
[1729847007574,2.9063,172.14,172.09,2.9068]
[1729847007884,2.9063,172.14,172.07,6.0]
[1729847007885,12.56822517,172.17,172.07,6.0]
[1729847008582,2.9063,172.14,172.08,2.907]
[1729847009680,2.9063,172.14,172.09,2.907]
[1729847012485,10.95118094,172.14,172.09,2.907]
[1729847015381,0.9695,172.26,172.09,8.04488094]
[1729847015578,10.95068094,172.17,172.12,2.9065]
[1729847016581,8.04488094,172.17,172.11,8.04488094]
[1729847016777,8.04488094,172.17,172.12,14.04488094]
[1729847016983,0.9695,172.26,172.14,8.04488094]
[1729847016984,6.0,172.25,172.14,8.04488094]
[1729847017188,10.94988094,172.21,172.16,2.9058]
[1729847017589,8.04488094,172.21,172.16,2.9058]
[1729847018484,10.94988094,172.21,172.16,2.9058]
[1729847018887,10.94988094,172.21,172.17,2.9056]
[1729847019493,10.94988094,172.21,172.12,7.2979]
[1729847019494,8.04488094,172.21,172.15,8.04488094]
[1729847019792,8.04488094,172.21,171.98,46.5258]
[1729847019793,8.04488094,172.2,172.08,62.76]
[1729847019990,6.0,172.26,172.11,2.9066]
[1729847019991,10.95078094,172.16,172.11,2.9066]
[1729847020184,10.95078094,172.16,172.09,8.04488094]
[1729847020491,2.9062,172.14,172.1,2.9068]
[1729847020694,10.95108094,172.14,172.1,2.9068]
[1729847020893,8.04488094,172.14,172.09,8.04488094]
[1729847021201,10.95108094,172.14,172.1,2.9067]
[1729847022293,2.9062,172.14,172.1,2.9067]
[1729847026799,6.0,172.21,172.07,6.0]
[1729847027099,12.56955355,172.22,172.1,12.56955355]
[1729847027295,12.56955355,172.22,172.11,3.99731769]
[1729847027508,2.9053,172.2,172.15,2.9059]
[1729847028001,12.56955355,172.22,172.12,5.68]